[Event "Late-Titled-Tuesday-Blitz-May-14-2024"]
[Site "Chess.com"]
[Date "2024.05.14"]
[Round "8"]
[White "Slovineanu"]
[Black "SahaNeelash"]
[Result "1-0"]
[WhiteElo "2480"]
[BlackElo "2679"]
[TimeControl "180+1"]
[EndTime "15:27:08 PDT"]
[Termination "Slovineanu won by resignation"]

1. d4 {[%clk 0:03:00.9]} 1... d6 {[%clk 0:02:53.7]} 2. e4 {[%clk 0:03:00.4]}
2... Nd7 {[%clk 0:02:52.5]} 3. Nc3 {[%clk 0:02:59.4]} 3... g6 {[%clk 0:02:52.1]}
4. Nf3 {[%clk 0:02:58.3]} 4... Bg7 {[%clk 0:02:51.5]} 5. Be3 {[%clk 0:02:58.4]}
5... a6 {[%clk 0:02:50.5]} 6. h4 {[%clk 0:02:56.1]} 6... h6 {[%clk 0:02:50]} 7.
Bd3 {[%clk 0:02:52.1]} 7... b5 {[%clk 0:02:49.3]} 8. a4 {[%clk 0:02:51.8]} 8...
b4 {[%clk 0:02:48.9]} 9. Ne2 {[%clk 0:02:52]} 9... Bb7 {[%clk 0:02:48.1]} 10. h5
{[%clk 0:02:49.4]} 10... g5 {[%clk 0:02:48.2]} 11. Ng3 {[%clk 0:02:49.6]} 11...
e6 {[%clk 0:02:48.4]} 12. O-O {[%clk 0:02:47.4]} 12... Ne7 {[%clk 0:02:45.6]}
13. Qd2 {[%clk 0:02:43.5]} 13... a5 {[%clk 0:02:42.8]} 14. c3 {[%clk 0:02:42]}
14... c5 {[%clk 0:02:39.8]} 15. Bb5 {[%clk 0:02:28.9]} 15... Bc6 {[%clk
0:02:39.6]} 16. Rfe1 {[%clk 0:02:17.7]} 16... Qb6 {[%clk 0:02:25.9]} 17. Bxc6
{[%clk 0:01:51.8]} 17... Qxc6 {[%clk 0:02:22.3]} 18. Rad1 {[%clk 0:01:52.1]}
18... Nb6 {[%clk 0:02:16.8]} 19. b3 {[%clk 0:01:45.9]} 19... O-O {[%clk
0:01:44.7]} 20. cxb4 {[%clk 0:01:25.7]} 20... cxb4 {[%clk 0:01:29.2]} 21. Bxg5
{[%clk 0:00:47.3]} 21... hxg5 {[%clk 0:01:26.8]} 22. Qxg5 {[%clk 0:00:47.8]}
22... f6 {[%clk 0:01:22.1]} 23. Qg4 {[%clk 0:00:48]} 23... Kf7 {[%clk
0:01:18.5]} 24. d5 {[%clk 0:00:45.7]} 24... Qd7 {[%clk 0:01:12.2]} 25. dxe6+
{[%clk 0:00:41.6]} 25... Qxe6 {[%clk 0:01:12.6]} 26. Nf5 {[%clk 0:00:41.8]}
26... Rg8 {[%clk 0:00:59.6]} 27. Rxd6 {[%clk 0:00:38.7]} 27... Qxb3 {[%clk
0:00:48.1]} 28. Nxe7 {[%clk 0:00:29]} 28... Kxe7 {[%clk 0:00:29.5]} 29. Rxb6
{[%clk 0:00:28.3]} 29... Kf8 {[%clk 0:00:13.1]} 30. Nh4 {[%clk 0:00:26.3]} 30...
Qf7 {[%clk 0:00:12.6]} 31. Ng6+ {[%clk 0:00:25]} 31... Ke8 {[%clk 0:00:13.2]}
32. Re6+ {[%clk 0:00:20.5]} 32... Kd8 {[%clk 0:00:12]} 33. Qd1+ {[%clk
0:00:19.1]} 33... Kc7 {[%clk 0:00:08.1]} 34. Re7+ {[%clk 0:00:18.6]} 34... Qxe7
{[%clk 0:00:06.8]} 35. Nxe7 {[%clk 0:00:18.9]} 35... Rgd8 {[%clk 0:00:07.7]} 36.
Nd5+ {[%clk 0:00:18.8]} 36... Kd7 {[%clk 0:00:08.6]} 37. Qg4+ {[%clk 0:00:17.9]}
37... Kc6 {[%clk 0:00:08.6]} 38. Qxg7 {[%clk 0:00:17.8]} 1-0

[Event "Late-Titled-Tuesday-Blitz-May-14-2024"]
[Site "Chess.com"]
[Date "2024.05.14"]
[Round "8"]
[White "kingofthenil"]
[Black "TigrVShlyape"]
[Result "1-0"]
[WhiteElo "2889"]
[BlackElo "2939"]
[TimeControl "180+1"]
[EndTime "15:27:12 PDT"]
[Termination "kingofthenil won by resignation"]

1. d4 {[%clk 0:03:00.9]} 1... f5 {[%clk 0:02:59]} 2. c4 {[%clk 0:02:58.7]} 2...
Nf6 {[%clk 0:02:58.4]} 3. Nc3 {[%clk 0:02:59.1]} 3... e6 {[%clk 0:02:58.5]} 4.
a3 {[%clk 0:02:59.3]} 4... g6 {[%clk 0:02:56.2]} 5. h4 {[%clk 0:02:58.4]} 5...
Bg7 {[%clk 0:02:55.3]} 6. h5 {[%clk 0:02:58.5]} 6... Nxh5 {[%clk 0:02:09.8]} 7.
e4 {[%clk 0:02:56.9]} 7... fxe4 {[%clk 0:02:10]} 8. Rxh5 {[%clk 0:02:44.1]} 8...
gxh5 {[%clk 0:02:09.8]} 9. Qxh5+ {[%clk 0:02:45]} 9... Kf8 {[%clk 0:02:10]} 10.
Nxe4 {[%clk 0:02:35.3]} 10... Qe8 {[%clk 0:02:02.1]} 11. Qh4 {[%clk 0:02:24.4]}
11... Nc6 {[%clk 0:01:52.2]} 12. Bh6 {[%clk 0:02:20]} 12... Qg6 {[%clk
0:01:49.1]} 13. Bxg7+ {[%clk 0:02:15.4]} 13... Kxg7 {[%clk 0:01:45.2]} 14. Nf3
{[%clk 0:02:15.3]} 14... Rf8 {[%clk 0:01:39.2]} 15. Bd3 {[%clk 0:02:10.3]} 15...
Qh6 {[%clk 0:01:32.3]} 16. Qg3+ {[%clk 0:01:47.3]} 16... Kh8 {[%clk 0:01:27.6]}
17. d5 {[%clk 0:01:37.6]} 17... exd5 {[%clk 0:01:25.7]} 18. cxd5 {[%clk
0:01:38.5]} 18... Ne7 {[%clk 0:01:25.2]} 19. Qxc7 {[%clk 0:01:38.8]} 19... Nxd5
{[%clk 0:01:14.4]} 20. Qe5+ {[%clk 0:01:35.8]} 20... Nf6 {[%clk 0:01:14.4]} 21.
Nfg5 {[%clk 0:01:29.8]} 21... d5 {[%clk 0:01:04.1]} 22. Nd6 {[%clk 0:01:26.3]}
22... Qg7 {[%clk 0:01:02.1]} 23. O-O-O {[%clk 0:01:20.4]} 23... Ne4 {[%clk
0:00:31.9]} 24. Ngf7+ {[%clk 0:01:04.8]} 24... Kg8 {[%clk 0:00:31]} 25. Qxd5
{[%clk 0:01:03.4]} 25... Nxd6 {[%clk 0:00:20.7]} 26. Nxd6+ {[%clk 0:01:02.7]}
26... Kh8 {[%clk 0:00:21]} 27. Rh1 {[%clk 0:01:03]} 27... h6 {[%clk 0:00:21.1]}
28. Bc4 {[%clk 0:00:26.8]} 28... Bd7 {[%clk 0:00:18.6]} 29. Nf7+ {[%clk
0:00:19.9]} 29... Rxf7 {[%clk 0:00:18.9]} 30. Qxf7 {[%clk 0:00:19.8]} 30... Rc8
{[%clk 0:00:17.7]} 31. Qf4 {[%clk 0:00:11.8]} 31... Kh7 {[%clk 0:00:15.9]} 32.
Kb1 {[%clk 0:00:08.5]} 32... Qg6+ {[%clk 0:00:16.2]} 33. Ka1 {[%clk 0:00:08]}
33... Be6 {[%clk 0:00:16.4]} 34. Bd3 {[%clk 0:00:05.4]} 34... Qxd3 {[%clk
0:00:14.7]} 35. Qxh6+ {[%clk 0:00:04.8]} 35... Kg8 {[%clk 0:00:15]} 36. Qh8+
{[%clk 0:00:04.9]} 36... Kf7 {[%clk 0:00:14.1]} 37. Rh7+ {[%clk 0:00:05.5]}
37... Kg6 {[%clk 0:00:14.5]} 38. Qg7+ {[%clk 0:00:03.9]} 38... Kf5 {[%clk
0:00:14.8]} 39. Rh5+ {[%clk 0:00:04.2]} 1-0

[Event "Late-Titled-Tuesday-Blitz-May-14-2024"]
[Site "Chess.com"]
[Date "2024.05.14"]
[Round "8"]
[White "jup1978"]
[Black "xasid81"]
[Result "0-1"]
[WhiteElo "2477"]
[BlackElo "2627"]
[TimeControl "180+1"]
[EndTime "15:27:13 PDT"]
[Termination "xasid81 won by resignation"]

1. d4 {[%clk 0:03:00.9]} 1... Nf6 {[%clk 0:02:58.2]} 2. Nf3 {[%clk 0:03:01.2]}
2... b6 {[%clk 0:02:57.9]} 3. g3 {[%clk 0:03:00.7]} 3... Bb7 {[%clk 0:02:58.3]}
4. Bg2 {[%clk 0:03:01.1]} 4... g6 {[%clk 0:02:57.7]} 5. O-O {[%clk 0:03:01]}
5... Bg7 {[%clk 0:02:58]} 6. c4 {[%clk 0:03:00.5]} 6... e6 {[%clk 0:02:58.4]} 7.
Nc3 {[%clk 0:03:00.1]} 7... O-O {[%clk 0:02:57.6]} 8. d5 {[%clk 0:03:00.3]} 8...
exd5 {[%clk 0:02:57.7]} 9. cxd5 {[%clk 0:03:01.2]} 9... Re8 {[%clk 0:02:56.9]}
10. Re1 {[%clk 0:03:00.1]} 10... Na6 {[%clk 0:02:51.2]} 11. e4 {[%clk
0:02:49.2]} 11... c6 {[%clk 0:02:46.8]} 12. e5 {[%clk 0:02:43.4]} 12... Nxd5
{[%clk 0:02:45.3]} 13. Nxd5 {[%clk 0:02:43.6]} 13... cxd5 {[%clk 0:02:46.1]} 14.
Bg5 {[%clk 0:02:41.9]} 14... f6 {[%clk 0:02:36.3]} 15. exf6 {[%clk 0:02:39.1]}
15... Rxe1+ {[%clk 0:02:31.1]} 16. Qxe1 {[%clk 0:02:34.7]} 16... Bxf6 {[%clk
0:02:26.3]} 17. Bxf6 {[%clk 0:02:31.9]} 17... Qxf6 {[%clk 0:02:27.2]} 18. Qd2
{[%clk 0:02:31.5]} 18... Re8 {[%clk 0:02:17.5]} 19. Rd1 {[%clk 0:02:27]} 19...
Nc5 {[%clk 0:02:14.4]} 20. Qd4 {[%clk 0:02:17.4]} 20... Qxd4 {[%clk 0:02:08.7]}
21. Nxd4 {[%clk 0:02:18.3]} 21... a6 {[%clk 0:02:02.3]} 22. Bh3 {[%clk
0:02:07.1]} 22... Bc6 {[%clk 0:01:47.9]} 23. Kf1 {[%clk 0:02:01.5]} 23... a5
{[%clk 0:01:40.7]} 24. a3 {[%clk 0:02:00.8]} 24... Kf7 {[%clk 0:01:32.4]} 25. b4
{[%clk 0:01:58.1]} 25... Ba4 {[%clk 0:01:11.9]} 26. Rd2 {[%clk 0:01:36.1]} 26...
Ne4 {[%clk 0:01:00.5]} 27. Rb2 {[%clk 0:01:33.8]} 27... Rc8 {[%clk 0:00:49.5]}
28. bxa5 {[%clk 0:01:30.6]} 28... bxa5 {[%clk 0:00:46.1]} 29. Kg2 {[%clk
0:01:29.2]} 29... Rc4 {[%clk 0:00:43.6]} 30. Nf3 {[%clk 0:01:27.5]} 30... Kf6
{[%clk 0:00:37]} 31. Ne1 {[%clk 0:01:18.7]} 31... d4 {[%clk 0:00:33]} 32. Nd3
{[%clk 0:01:17.4]} 32... Nc5 {[%clk 0:00:25.3]} 33. Nf4 {[%clk 0:01:11.2]} 33...
d3 {[%clk 0:00:20.6]} 34. Bg4 {[%clk 0:00:58.2]} 34... Rc2 {[%clk 0:00:15.2]}
35. Rb6+ {[%clk 0:00:52.7]} 35... Bc6+ {[%clk 0:00:14.3]} 36. Kh3 {[%clk
0:00:49.8]} 36... d2 {[%clk 0:00:13.5]} 37. Nd5+ {[%clk 0:00:48.5]} 37... Ke5
{[%clk 0:00:11.9]} 38. Ne3 {[%clk 0:00:48.4]} 38... Rc1 {[%clk 0:00:11.4]} 39.
Rb2 {[%clk 0:00:42.4]} 39... h5 {[%clk 0:00:10.8]} 40. Bd1 {[%clk 0:00:39.3]}
40... Ne4 {[%clk 0:00:11]} 41. f3 {[%clk 0:00:22.5]} 41... Nf2+ {[%clk 0:00:10]}
42. Kg2 {[%clk 0:00:22.4]} 42... Nxd1 {[%clk 0:00:10.3]} 43. Nxd1 {[%clk
0:00:20.6]} 43... Rxd1 {[%clk 0:00:10.4]} 44. Kf2 {[%clk 0:00:20]} 44... Rf1+
{[%clk 0:00:10.2]} 45. Kxf1 {[%clk 0:00:19.5]} 45... d1=Q+ {[%clk 0:00:10.8]}
0-1

[Event "Late-Titled-Tuesday-Blitz-May-14-2024"]
[Site "Chess.com"]
[Date "2024.05.14"]
[Round "8"]
[White "temus_galaktionov"]
[Black "Flawless_Fighter"]
[Result "1/2-1/2"]
[WhiteElo "2859"]
[BlackElo "2693"]
[TimeControl "180+1"]
[EndTime "15:27:14 PDT"]
[Termination "Game drawn by repetition"]

1. d4 {[%clk 0:02:59.3]} 1... Nf6 {[%clk 0:02:59.5]} 2. c4 {[%clk 0:02:59.3]}
2... e6 {[%clk 0:02:54]} 3. Nf3 {[%clk 0:02:59.5]} 3... d5 {[%clk 0:02:54.6]} 4.
Nc3 {[%clk 0:02:59.8]} 4... c5 {[%clk 0:02:55]} 5. cxd5 {[%clk 0:03:00]} 5...
Nxd5 {[%clk 0:02:55.9]} 6. e4 {[%clk 0:03:00.2]} 6... Nxc3 {[%clk 0:02:55.8]} 7.
bxc3 {[%clk 0:03:01.1]} 7... cxd4 {[%clk 0:02:56.5]} 8. cxd4 {[%clk 0:03:02]}
8... Bb4+ {[%clk 0:02:57]} 9. Bd2 {[%clk 0:03:02.7]} 9... Bxd2+ {[%clk
0:02:57.5]} 10. Qxd2 {[%clk 0:03:03.6]} 10... O-O {[%clk 0:02:57.9]} 11. Bd3
{[%clk 0:03:04.5]} 11... b6 {[%clk 0:02:56.6]} 12. O-O {[%clk 0:03:03.5]} 12...
Bb7 {[%clk 0:02:57.2]} 13. Rac1 {[%clk 0:02:57.7]} 13... Nd7 {[%clk 0:02:56.2]}
14. Qf4 {[%clk 0:02:57.9]} 14... h6 {[%clk 0:02:50.2]} 15. Qc7 {[%clk
0:02:47.9]} 15... Rb8 {[%clk 0:02:47.1]} 16. Rfe1 {[%clk 0:02:39.9]} 16... Nc5
{[%clk 0:02:21.7]} 17. Qxd8 {[%clk 0:02:33.1]} 17... Rfxd8 {[%clk 0:02:22.6]}
18. Bb1 {[%clk 0:01:49.8]} 18... Na6 {[%clk 0:02:15.4]} 19. Kf1 {[%clk
0:01:48.4]} 19... Rbc8 {[%clk 0:02:14.2]} 20. Ke2 {[%clk 0:01:47.9]} 20... Kf8
{[%clk 0:02:12.5]} 21. Ke3 {[%clk 0:01:43.5]} 21... Ke7 {[%clk 0:02:12.1]} 22.
Ne5 {[%clk 0:01:39.8]} 22... Nb4 {[%clk 0:02:07.8]} 23. a3 {[%clk 0:01:36.3]}
23... Nc6 {[%clk 0:02:07.4]} 24. Nxc6+ {[%clk 0:01:36.5]} 24... Rxc6 {[%clk
0:02:08.2]} 25. Rxc6 {[%clk 0:01:36.2]} 25... Bxc6 {[%clk 0:02:09.1]} 26. Rc1
{[%clk 0:01:36.5]} 26... Bb7 {[%clk 0:02:07.5]} 27. Ba2 {[%clk 0:01:30]} 27...
Rc8 {[%clk 0:02:06.9]} 28. Rxc8 {[%clk 0:01:29.4]} 28... Bxc8 {[%clk 0:02:07.8]}
29. d5 {[%clk 0:01:29.1]} 29... exd5 {[%clk 0:02:05.5]} 30. Bxd5 {[%clk
0:01:28.7]} 30... Be6 {[%clk 0:02:02.2]} 31. Bb7 {[%clk 0:01:28.6]} 31... g5
{[%clk 0:01:41.6]} 32. e5 {[%clk 0:01:24.8]} 32... Kd7 {[%clk 0:01:40.8]} 33. g3
{[%clk 0:01:20.2]} 33... g4 {[%clk 0:01:37.9]} 34. f4 {[%clk 0:01:19.4]} 34...
gxf3 {[%clk 0:01:37.5]} 35. Bxf3 {[%clk 0:01:19.1]} 35... a5 {[%clk 0:01:27.3]}
36. Kd4 {[%clk 0:01:16.7]} 36... Kc7 {[%clk 0:01:25.1]} 37. h4 {[%clk
0:01:15.6]} 37... Kd7 {[%clk 0:00:56.2]} 38. g4 {[%clk 0:01:10.7]} 38... Ke7
{[%clk 0:00:54]} 39. Be2 {[%clk 0:01:03]} 39... f6 {[%clk 0:00:45.2]} 40. Ke4
{[%clk 0:00:59.8]} 40... b5 {[%clk 0:00:33.7]} 41. Bxb5 {[%clk 0:00:51.4]} 41...
Bxg4 {[%clk 0:00:33.5]} 42. Bd3 {[%clk 0:00:41.7]} 42... Be6 {[%clk 0:00:30.5]}
43. Kd4 {[%clk 0:00:41]} 43... Bd7 {[%clk 0:00:25.5]} 44. Bc4 {[%clk 0:00:35.7]}
44... Be8 {[%clk 0:00:24.7]} 45. Ke4 {[%clk 0:00:24]} 45... Bg6+ {[%clk
0:00:21.9]} 46. Kd4 {[%clk 0:00:23.8]} 46... Be8 {[%clk 0:00:21.5]} 47. Bb3
{[%clk 0:00:22.4]} 47... Bc6 {[%clk 0:00:20.5]} 48. Bc4 {[%clk 0:00:21.3]} 48...
Be8 {[%clk 0:00:20.6]} 1/2-1/2

[Event "Late-Titled-Tuesday-Blitz-May-14-2024"]
[Site "Chess.com"]
[Date "2024.05.14"]
[Round "8"]
[White "Felix-Rose"]
[Black "Ali_rastbod"]
[Result "0-1"]
[WhiteElo "2326"]
[BlackElo "2723"]
[TimeControl "180+1"]
[EndTime "15:27:22 PDT"]
[Termination "Ali_rastbod won on time"]

1. e4 {[%clk 0:03:00.9]} 1... d6 {[%clk 0:02:48]} 2. d4 {[%clk 0:03:00.3]} 2...
Nf6 {[%clk 0:02:48.7]} 3. Nc3 {[%clk 0:03:00.5]} 3... g6 {[%clk 0:02:49.5]} 4.
Nf3 {[%clk 0:03:00.4]} 4... Bg7 {[%clk 0:02:50]} 5. h3 {[%clk 0:03:00.6]} 5...
O-O {[%clk 0:02:50.5]} 6. Be3 {[%clk 0:03:00.8]} 6... c5 {[%clk 0:02:49.6]} 7.
dxc5 {[%clk 0:03:00.6]} 7... Qa5 {[%clk 0:02:50.3]} 8. Nd2 {[%clk 0:03:00.5]}
8... dxc5 {[%clk 0:02:46.7]} 9. Nb3 {[%clk 0:03:00.6]} 9... Qc7 {[%clk
0:02:46.9]} 10. Nxc5 {[%clk 0:02:58.8]} 10... Rd8 {[%clk 0:02:28.5]} 11. Bd3
{[%clk 0:02:51.1]} 11... b6 {[%clk 0:02:20]} 12. Nb3 {[%clk 0:02:50.5]} 12...
Bb7 {[%clk 0:02:20.6]} 13. Qe2 {[%clk 0:02:48]} 13... a6 {[%clk 0:02:08.6]} 14.
O-O {[%clk 0:02:39.7]} 14... b5 {[%clk 0:02:08.8]} 15. a3 {[%clk 0:02:39.4]}
15... Nbd7 {[%clk 0:02:06.9]} 16. f4 {[%clk 0:02:31.9]} 16... e5 {[%clk
0:02:01.2]} 17. f5 {[%clk 0:02:29.8]} 17... Nh5 {[%clk 0:02:01.3]} 18. Qf2
{[%clk 0:02:11.7]} 18... Nf4 {[%clk 0:02:01.5]} 19. Rad1 {[%clk 0:01:52.1]}
19... Rac8 {[%clk 0:01:54.9]} 20. Kh2 {[%clk 0:01:40.5]} 20... Nf6 {[%clk
0:01:53.4]} 21. g3 {[%clk 0:01:32.7]} 21... Nxd3 {[%clk 0:01:46.9]} 22. cxd3
{[%clk 0:01:27.6]} 22... Qd6 {[%clk 0:01:43.5]} 23. g4 {[%clk 0:01:06.5]} 23...
Nd7 {[%clk 0:01:37.8]} 24. g5 {[%clk 0:00:56.1]} 24... Rf8 {[%clk 0:01:25]} 25.
f6 {[%clk 0:00:55.2]} 25... Bh8 {[%clk 0:01:25.4]} 26. Qg3 {[%clk 0:00:44.3]}
26... Nb8 {[%clk 0:01:24.9]} 27. d4 {[%clk 0:00:39]} 27... Rxc3 {[%clk
0:01:19.7]} 28. bxc3 {[%clk 0:00:31.7]} 28... Bxe4 {[%clk 0:01:19.8]} 29. dxe5
{[%clk 0:00:28.5]} 29... Qxa3 {[%clk 0:01:19.3]} 30. Nc5 {[%clk 0:00:13.7]}
30... Bf5 {[%clk 0:01:08.1]} 31. e6 {[%clk 0:00:13.3]} 31... Bxe6 {[%clk
0:01:00.7]} 32. Nxe6 {[%clk 0:00:13.4]} 32... Qa2+ {[%clk 0:01:01.2]} 33. Rf2
{[%clk 0:00:12.5]} 33... Qxe6 {[%clk 0:01:02.1]} 34. Re1 {[%clk 0:00:10.4]}
34... Nc6 {[%clk 0:00:58.6]} 35. Rd2 {[%clk 0:00:09.5]} 35... h6 {[%clk
0:00:52.4]} 36. Bc5 {[%clk 0:00:09.8]} 36... Qf5 {[%clk 0:00:33.1]} 37. Bxf8
{[%clk 0:00:09.5]} 37... hxg5 {[%clk 0:00:33.7]} 38. Be7 {[%clk 0:00:07.6]}
38... Bxf6 {[%clk 0:00:29.9]} 39. Rf2 {[%clk 0:00:06.6]} 39... Nxe7 {[%clk
0:00:29.1]} 40. Rxf5 {[%clk 0:00:06.5]} 40... Nxf5 {[%clk 0:00:30]} 41. Qb8+
{[%clk 0:00:06.6]} 41... Kg7 {[%clk 0:00:30.2]} 42. Re8 {[%clk 0:00:06.5]} 42...
Bxc3 {[%clk 0:00:28.8]} 43. Rg8+ {[%clk 0:00:05.8]} 43... Kh7 {[%clk 0:00:29.1]}
44. Qf8 {[%clk 0:00:02.8]} 44... Nh6 {[%clk 0:00:23.4]} 0-1

[Event "Late-Titled-Tuesday-Blitz-May-14-2024"]
[Site "Chess.com"]
[Date "2024.05.14"]
[Round "8"]
[White "TheBigBadChessDad"]
[Black "marvinguevara"]
[Result "1-0"]
[WhiteElo "2283"]
[BlackElo "2186"]
[TimeControl "180+1"]
[EndTime "15:27:23 PDT"]
[Termination "TheBigBadChessDad won on time"]

1. e4 {[%clk 0:03:00.9]} 1... c5 {[%clk 0:02:59.7]} 2. Nf3 {[%clk 0:03:00.9]}
2... d6 {[%clk 0:02:59.2]} 3. c3 {[%clk 0:03:01.1]} 3... Nf6 {[%clk 0:02:58.5]}
4. h3 {[%clk 0:03:01.3]} 4... Nc6 {[%clk 0:02:56.4]} 5. Bd3 {[%clk 0:03:00.6]}
5... g6 {[%clk 0:02:56.4]} 6. O-O {[%clk 0:03:00.1]} 6... Bg7 {[%clk 0:02:57]}
7. Re1 {[%clk 0:02:58.6]} 7... O-O {[%clk 0:02:57.4]} 8. Bc2 {[%clk 0:02:59]}
8... Bd7 {[%clk 0:02:55.6]} 9. d4 {[%clk 0:02:59.1]} 9... cxd4 {[%clk
0:02:47.2]} 10. cxd4 {[%clk 0:03:00]} 10... Nb4 {[%clk 0:02:47.2]} 11. Bb3
{[%clk 0:02:59.4]} 11... d5 {[%clk 0:02:47.3]} 12. e5 {[%clk 0:02:58.8]} 12...
Ne8 {[%clk 0:02:33.4]} 13. a3 {[%clk 0:02:57.9]} 13... Nc6 {[%clk 0:02:26.8]}
14. Bxd5 {[%clk 0:02:57.8]} 14... Bf5 {[%clk 0:02:25.7]} 15. Ba2 {[%clk
0:02:46.2]} 15... Qc7 {[%clk 0:02:18.6]} 16. Nc3 {[%clk 0:02:43.2]} 16... Rd8
{[%clk 0:02:16.7]} 17. Nd5 {[%clk 0:02:40.7]} 17... Qb8 {[%clk 0:02:07.3]} 18.
Bg5 {[%clk 0:02:30.1]} 18... Rd7 {[%clk 0:01:43.2]} 19. Rc1 {[%clk 0:02:20.3]}
19... Be6 {[%clk 0:01:43]} 20. Nc3 {[%clk 0:02:01.8]} 20... Bxa2 {[%clk
0:01:41.1]} 21. Nxa2 {[%clk 0:02:02.7]} 21... Nc7 {[%clk 0:01:29.5]} 22. Nc3
{[%clk 0:01:56.1]} 22... Ne6 {[%clk 0:01:27.5]} 23. Be3 {[%clk 0:01:54.1]} 23...
Nxe5 {[%clk 0:01:24.8]} 24. Nxe5 {[%clk 0:01:49.2]} 24... Bxe5 {[%clk
0:01:25.7]} 25. Qa4 {[%clk 0:01:47.2]} 25... Bh2+ {[%clk 0:01:16]} 26. Kh1
{[%clk 0:01:47.1]} 26... Rfd8 {[%clk 0:01:15.1]} 27. d5 {[%clk 0:01:42.3]} 27...
Ng7 {[%clk 0:01:10.5]} 28. Bxa7 {[%clk 0:01:41.5]} 28... Qf4 {[%clk 0:01:03]}
29. Qxf4 {[%clk 0:01:34]} 29... Bxf4 {[%clk 0:01:03.9]} 30. Rcd1 {[%clk
0:01:33.8]} 30... e6 {[%clk 0:00:53.9]} 31. dxe6 {[%clk 0:01:32]} 31... Nxe6
{[%clk 0:00:51.1]} 32. Rxd7 {[%clk 0:01:25]} 32... Rxd7 {[%clk 0:00:52]} 33. Be3
{[%clk 0:01:22.9]} 33... Bxe3 {[%clk 0:00:49.6]} 34. Rxe3 {[%clk 0:01:23]} 34...
Rd2 {[%clk 0:00:48.8]} 35. Re2 {[%clk 0:01:11.1]} 35... Rd3 {[%clk 0:00:48.4]}
36. g3 {[%clk 0:01:08.5]} 36... Kg7 {[%clk 0:00:43.2]} 37. Kg2 {[%clk 0:01:05]}
37... Nd4 {[%clk 0:00:33.9]} 38. Re7 {[%clk 0:01:01.8]} 38... b5 {[%clk
0:00:32.5]} 39. Rd7 {[%clk 0:01:00.1]} 39... Rd2 {[%clk 0:00:19.4]} 40. Ne4
{[%clk 0:00:57.5]} 40... Rd1 {[%clk 0:00:15.6]} 41. Ng5 {[%clk 0:00:53.1]} 41...
Kf6 {[%clk 0:00:08.1]} 42. h4 {[%clk 0:00:52.8]} 42... Rd2 {[%clk 0:00:04.9]}
43. Rxf7+ {[%clk 0:00:48.6]} 43... Ke5 {[%clk 0:00:04.8]} 44. b4 {[%clk
0:00:35.3]} 44... Nf5 {[%clk 0:00:02.4]} 45. Rb7 {[%clk 0:00:30.2]} 45... Nd4
{[%clk 0:00:01.7]} 46. Nf3+ {[%clk 0:00:27.1]} 46... Nxf3 {[%clk 0:00:01.1]} 47.
Kxf3 {[%clk 0:00:28]} 47... Rd3+ {[%clk 0:00:01.7]} 48. Kg4 {[%clk 0:00:28.5]}
48... Rxa3 {[%clk 0:00:01.3]} 49. Rxb5+ {[%clk 0:00:27.4]} 1-0

[Event "Late-Titled-Tuesday-Blitz-May-14-2024"]
[Site "Chess.com"]
[Date "2024.05.14"]
[Round "8"]
[White "urano56"]
[Black "Bykov_Egor"]
[Result "0-1"]
[WhiteElo "2433"]
[BlackElo "2610"]
[TimeControl "180+1"]
[EndTime "15:27:24 PDT"]
[Termination "Bykov_Egor won by resignation"]

1. e4 {[%clk 0:03:00.9]} 1... e5 {[%clk 0:02:55.3]} 2. Nf3 {[%clk 0:03:00.3]}
2... Nf6 {[%clk 0:02:53]} 3. Nxe5 {[%clk 0:02:59.6]} 3... d6 {[%clk 0:02:52.5]}
4. Nf3 {[%clk 0:03:00]} 4... Nxe4 {[%clk 0:02:52.2]} 5. d4 {[%clk 0:03:00.6]}
5... d5 {[%clk 0:02:50.8]} 6. Bd3 {[%clk 0:03:00.7]} 6... Bd6 {[%clk 0:02:43.6]}
7. O-O {[%clk 0:03:01.1]} 7... O-O {[%clk 0:02:41.6]} 8. c4 {[%clk 0:03:01.2]}
8... c6 {[%clk 0:02:40.2]} 9. Nc3 {[%clk 0:03:01.3]} 9... Nxc3 {[%clk
0:02:36.9]} 10. bxc3 {[%clk 0:03:02.2]} 10... dxc4 {[%clk 0:02:36.7]} 11. Bxc4
{[%clk 0:03:01.9]} 11... Bg4 {[%clk 0:02:29]} 12. Rb1 {[%clk 0:03:01]} 12... Qc7
{[%clk 0:02:16.3]} 13. h3 {[%clk 0:03:00.4]} 13... Bh5 {[%clk 0:02:14.7]} 14.
Re1 {[%clk 0:02:58.6]} 14... Nd7 {[%clk 0:02:13.8]} 15. Bd3 {[%clk 0:02:51.9]}
15... Bg6 {[%clk 0:02:07]} 16. Bxg6 {[%clk 0:02:47.4]} 16... hxg6 {[%clk
0:02:07.9]} 17. Ng5 {[%clk 0:02:36.2]} 17... Rae8 {[%clk 0:02:00.9]} 18. Rxe8
{[%clk 0:02:33.4]} 18... Rxe8 {[%clk 0:02:01.8]} 19. Bd2 {[%clk 0:02:33.1]}
19... Nf6 {[%clk 0:01:53.9]} 20. Qb3 {[%clk 0:02:27.7]} 20... b5 {[%clk
0:01:45.2]} 21. a4 {[%clk 0:02:23.5]} 21... a6 {[%clk 0:01:42.6]} 22. Re1 {[%clk
0:02:20.6]} 22... Rxe1+ {[%clk 0:01:32.5]} 23. Bxe1 {[%clk 0:02:20.9]} 23...
Bh2+ {[%clk 0:01:33.4]} 24. Kf1 {[%clk 0:02:20.3]} 24... Bf4 {[%clk 0:01:34.3]}
25. Nf3 {[%clk 0:02:14.5]} 25... Qe7 {[%clk 0:01:27.5]} 26. g3 {[%clk
0:02:05.5]} 26... Bd6 {[%clk 0:01:25.5]} 27. axb5 {[%clk 0:02:00.5]} 27... axb5
{[%clk 0:01:25.2]} 28. Qa2 {[%clk 0:01:52.3]} 28... Qb7 {[%clk 0:01:04.7]} 29.
Ng5 {[%clk 0:01:44.6]} 29... Nd5 {[%clk 0:01:04.5]} 30. Qe2 {[%clk 0:01:39.1]}
30... Be7 {[%clk 0:01:01.3]} 31. Nf3 {[%clk 0:01:24]} 31... Qd7 {[%clk
0:00:55.3]} 32. Ne5 {[%clk 0:01:21.7]} 32... Qxh3+ {[%clk 0:00:54.6]} 33. Kg1
{[%clk 0:01:20.7]} 33... Qe6 {[%clk 0:00:53.3]} 34. Qa2 {[%clk 0:01:12.2]} 34...
Kh7 {[%clk 0:00:32.3]} 35. Qa8 {[%clk 0:01:08.3]} 35... c5 {[%clk 0:00:27.3]}
36. Qb7 {[%clk 0:01:04.5]} 36... f6 {[%clk 0:00:24.4]} 37. Nf3 {[%clk
0:01:02.8]} 37... cxd4 {[%clk 0:00:24.1]} 38. cxd4 {[%clk 0:01:01.7]} 38... b4
{[%clk 0:00:24.6]} 39. Bd2 {[%clk 0:00:51.8]} 39... Qe4 {[%clk 0:00:24.6]} 40.
Nh2 {[%clk 0:00:35.6]} 40... g5 {[%clk 0:00:20.3]} 41. Qd7 {[%clk 0:00:27.2]}
41... b3 {[%clk 0:00:17.9]} 42. Qh3+ {[%clk 0:00:24.2]} 42... Kg6 {[%clk
0:00:18]} 43. g4 {[%clk 0:00:23.2]} 43... Kf7 {[%clk 0:00:17.8]} 44. Qh5+ {[%clk
0:00:21.7]} 44... Qg6 {[%clk 0:00:18.4]} 45. Qh3 {[%clk 0:00:19.5]} 45... b2
{[%clk 0:00:17.7]} 46. Qf3 {[%clk 0:00:18.6]} 46... b1=Q+ {[%clk 0:00:18.6]} 47.
Kg2 {[%clk 0:00:19.1]} 47... Qge4 {[%clk 0:00:18.8]} 0-1